bitfinex/quotes_SOLUSD_20250724
["timestamp","ask_amount","ask_price","bid_price","bid_amount"]
[1753367749485,0.7,186.75,186.68,9.62329561]
[1753367749895,0.7,186.75,186.68,0.78]
[1753367750184,0.7,186.76,186.68,8.86313701]
[1753367750385,0.7,186.76,186.69,8.84329561]
[1753367750686,0.7,186.76,186.7,8.84329561]
[1753367750897,0.7,186.76,186.68,6.13657486]
[1753367750898,9.54329561,186.76,186.71,8.84329561]
[1753367751122,6.05303249,186.81,186.72,0.72]
[1753367751321,0.7,186.81,186.72,0.72]
[1753367751498,5.35346411,186.8,186.75,8.84329561]
[1753367751696,14.19634674,186.81,186.76,8.84329561]
[1753367751922,0.7,186.82,186.76,9.56329561]
[1753367752119,8.84329561,186.82,186.77,8.84329561]
[1753367752494,8.84329561,186.85,186.8,8.84329561]
[1753367752802,14.89493289,186.86,186.81,8.84329561]
[1753367753201,9.54329561,186.86,186.81,8.84329561]
[1753367753521,0.7,186.85,186.8,8.84329561]
[1753367753726,9.54329561,186.85,186.77,6.07417893]
[1753367754025,0.7,186.85,186.8,8.84329561]
[1753367754326,9.54329561,186.85,186.8,8.84329561]
[1753367754618,8.84329561,186.86,186.81,8.84329561]
[1753367755119,14.19500237,186.86,186.81,8.84329561]
[1753367755297,8.84329561,186.86,186.81,8.84329561]
[1753367755496,8.84329561,186.86,186.81,9.56329561]
[1753367756221,0.7,186.86,186.81,8.84329561]
[1753367756426,9.54329561,186.86,186.81,8.84329561]
[1753367756720,5.38136522,186.87,186.81,8.84329561]
[1753367756922,0.03,186.87,186.82,0.72]
[1753367757108,0.03,186.87,186.83,0.72]
[1753367757310,0.03,186.87,186.85,8.84329561]
[1753367758005,0.03,186.87,186.84,0.72]
[1753367758220,0.03,186.87,186.84,9.56329561]
[1753367758422,0.03,186.87,186.85,8.84329561]
[1753367758720,0.03,186.87,186.84,0.72]
[1753367758903,0.03,186.87,186.85,8.84329561]
[1753367759503,0.03,186.87,186.85,9.56329561]
[1753367759705,0.03,186.87,186.85,8.84329561]
[1753367760122,0.03,186.87,186.86,8.84329561]
[1753367760324,0.03,186.87,186.84,0.72]
[1753367760623,0.03,186.87,186.86,8.84329561]
[1753367760809,0.03,186.87,186.85,0.72]
[1753367761003,0.03,186.87,186.86,8.84329561]
[1753367761204,0.03,186.87,186.86,9.56329561]
[1753367761523,0.03,186.87,186.86,0.72]
[1753367761725,0.03,186.87,186.86,9.56329561]
[1753367761925,0.03,186.87,186.86,14.19489573]
[1753367762113,0.03,186.87,186.86,14.91489573]
[1753367762712,0.03,186.87,186.86,6.07160012]
[1753367762929,0.03,186.87,186.86,14.91489573]
[1753367763112,0.03,186.87,186.86,21.23739573]
[1753367764006,0.03,186.87,186.86,15.88579561]
[1753367764206,0.03,186.87,186.86,6.3225]
[1753367764608,0.03,186.87,186.79,6.4903]
[1753367764811,0.7,186.86,186.79,95.4303]
[1753367765133,8.84329561,186.84,186.79,109.6270937]
[1753367765337,0.03,186.87,186.83,8.84329561]
[1753367765812,8.84329561,186.86,186.81,14.1963281]
[1753367766013,0.03,186.87,186.82,0.72]
[1753367766313,0.03,186.87,186.84,8.84329561]
[1753367766528,0.03,186.87,186.84,88.94]
[1753367766710,0.03,186.87,186.86,8.84329561]
[1753367767412,0.03,186.87,186.85,0.72]
[1753367767716,0.03,186.87,186.86,9.56329561]
[1753367768214,0.03,186.87,186.86,14.91489573]
[1753367768719,0.03,186.87,186.86,6.07160012]
[1753367768918,0.03,186.87,186.86,14.91489573]
[1753367769423,0.03,186.87,186.86,0.72]
[1753367769733,0.03,186.87,186.86,8.84329561]
[1753367770527,0.03,186.87,186.86,9.53329561]
[1753367770833,0.03,186.87,186.83,5.35245945]
[1753367771023,0.03,186.87,186.83,8.84329561]
[1753367771219,0.03,186.87,186.85,8.84329561]
[1753367771539,8.87329561,186.87,186.82,14.19599298]
[1753367771721,0.03,186.87,186.83,9.53329561]
[1753367771917,0.03,186.87,186.83,0.69]
[1753367772235,9.56329561,186.87,186.82,8.84329561]
[1753367772429,0.72,186.87,186.81,49.70329561]
[1753367772612,8.84329561,186.86,186.81,49.70329561]
[1753367772815,0.03,186.87,186.82,0.69]
[1753367773122,0.03,186.87,186.83,0.69]
[1753367773529,0.03,186.87,186.84,9.53329561]
[1753367773838,0.03,186.87,186.86,8.84329561]
[1753367774046,0.03,186.87,186.86,14.19489573]
[1753367774220,0.03,186.87,186.86,14.88489573]
[1753367774534,0.03,186.87,186.86,103.82489573]
[1753367774741,0.03,186.87,186.86,14.88489573]
[1753367775040,0.03,186.87,186.86,55.72489573]
[1753367775236,0.03,186.87,186.86,46.88160012]
[1753367775549,0.03,186.87,186.86,41.53]
[1753367775833,0.03,186.87,186.86,55.72489573]
[1753367777241,0.03,186.87,186.86,46.88160012]
[1753367777423,0.03,186.87,186.86,55.72489573]
[1753367778337,0.03,186.87,186.86,55.62489573]
[1753367779619,0.03,186.87,186.86,46.78160012]
[1753367779824,0.03,186.87,186.86,55.62489573]
[1753367781124,0.03,186.87,186.86,46.78160012]
[1753367781332,0.03,186.87,186.86,55.62489573]
[1753367782147,0.23,186.87,186.86,55.62489573]
[1753367782352,1e-08,186.87,186.86,57.81135574]
[1753367782530,1e-08,186.87,186.86,58.09567888]
[1753367783245,0.03,186.93,186.89,26.0]
[1753367783447,0.03,186.93,186.92,8.84329561]
[1753367783934,0.03,186.93,186.92,9.53329561]
[1753367784125,0.03,186.93,186.92,40.88317791]
[1753367785334,0.03,186.93,186.89,0.69]
[1753367785642,0.03,186.93,186.91,8.84329561]
[1753367786225,14.88319992,186.92,186.84,0.69]
[1753367786532,8.84329561,186.9,186.85,8.84329561]
[1753367786735,8.84329561,186.89,186.85,40.74]
[1753367787032,8.84329561,186.9,186.84,8.84329561]
[1753367787332,0.69,186.91,186.85,8.84329561]
[1753367787523,5.34990431,186.92,186.84,0.69]
[1753367787726,8.84329561,186.91,186.86,8.84329561]
[1753367788035,0.03,186.93,186.89,8.84329561]
[1753367788349,9.53329561,186.92,186.87,8.84329561]
[1753367788554,0.69,186.91,186.87,8.84329561]
[1753367788727,9.53329561,186.91,186.86,49.62329561]
[1753367788925,5.37972511,186.93,186.82,20.56376489]
[1753367788926,8.84329561,186.89,186.84,8.84329561]
[1753367789152,9.40329561,186.88,186.83,40.78]
[1753367789452,0.56,186.87,186.8,40.78]
[1753367789627,8.84329561,186.86,186.81,8.84329561]
[1753367790049,16.81468397,186.92,186.8,40.78]
[1753367790349,5.91016853,186.91,186.81,8.84329561]
[1753367790553,8.84329561,186.87,186.81,8.84329561]
[1753367790754,0.56,186.88,186.81,8.84329561]
[1753367790923,9.40329561,186.88,186.83,8.84329561]
[1753367791124,0.56,186.88,186.83,8.84329561]
[1753367791336,9.40329561,186.88,186.83,14.1956631]
[1753367791655,0.56,186.91,186.86,8.84329561]
[1753367791955,9.40329561,186.91,186.84,41.43]
[1753367792148,0.03,186.92,186.88,8.84329561]
[1753367792336,9.40329561,186.91,186.84,41.43]
[1753367792534,0.56,186.91,186.87,8.84329561]
[1753367792848,14.22321882,186.92,186.84,41.43]
[1753367793054,0.56,186.9,186.86,8.84329561]
[1753367793254,0.56,186.89,186.86,8.84329561]
[1753367793756,8.84329561,186.87,186.81,8.84329561]
[1753367793954,8.84329561,186.86,186.81,40.72]
[1753367794153,8.84329561,186.86,186.81,49.56329561]
[1753367794346,9.53329561,186.86,186.81,40.72]
[1753367794536,8.84329561,186.84,186.81,40.72]
[1753367794744,0.69,186.83,186.77,5.35412955]
[1753367794928,0.69,186.83,186.76,8.84329561]
[1753367795133,8.84329561,186.81,186.76,49.56329561]
[1753367795454,8.84329561,186.81,186.76,5.3543883]
[1753367795654,8.84329561,186.77,186.71,8.84329561]
[1753367795830,0.69,186.79,186.72,8.84329561]
[1753367796033,0.69,186.79,186.73,8.84329561]
[1753367796034,8.84329561,186.78,186.73,8.84329561]
[1753367796233,0.69,186.77,186.71,0.69]
[1753367796630,9.53329561,186.8,186.75,8.84329561]
[1753367796855,0.69,186.82,186.76,8.84329561]
[1753367797154,0.69,186.82,186.73,0.69]
[1753367797155,8.84329561,186.8,186.73,0.69]
[1753367797359,8.84329561,186.77,186.72,8.84329561]
[1753367797755,9.53329561,186.77,186.71,5.35586531]
[1753367797958,8.84329561,186.79,186.74,8.84329561]
[1753367798143,8.84329561,186.79,186.74,9.53329561]
[1753367798560,16.78468397,186.85,186.73,8.84329561]
[1753367798561,8.84329561,186.78,186.73,8.84329561]
[1753367798762,0.7,186.77,186.73,8.84329561]
[1753367799057,9.54329561,186.76,186.7,9.54329561]
[1753367799242,9.54329561,186.76,186.71,8.84329561]
[1753367799751,9.54329561,186.79,186.74,8.84329561]
[1753367800054,0.7,186.79,186.75,8.84329561]
[1753367800237,9.54329561,186.79,186.72,0.7]
[1753367800437,0.7,186.79,186.74,8.84329561]
[1753367800640,0.7,186.78,186.72,0.7]
[1753367800832,8.84329561,186.77,186.72,8.84329561]
[1753367801053,9.54329561,186.76,186.71,8.84329561]
[1753367801242,0.7,186.75,186.71,8.84329561]
[1753367801443,0.7,186.75,186.71,14.19919251]
[1753367801837,8.84329561,186.76,186.71,14.19919251]
[1753367802038,0.7,186.81,186.75,8.84329561]
[1753367802257,8.84329561,186.83,186.78,8.84329561]
[1753367802440,0.7,186.82,186.78,8.84329561]
[1753367802637,9.54329561,186.84,186.75,0.7]
[1753367802839,5.35188654,186.85,186.75,0.7]
[1753367803042,8.84329561,186.81,186.76,8.84329561]
[1753367803244,0.7,186.8,186.75,8.84329561]
[1753367803459,9.54329561,186.79,186.74,14.1982459]
[1753367804054,6.05194039,186.85,186.78,8.84329561]
[1753367804259,2.2788,186.88,186.82,8.84329561]
[1753367804571,8.84329561,186.9,186.85,8.84329561]
[1753367804858,7.6249,186.93,186.86,9.54329561]
[1753367805058,11.23719561,186.93,186.88,8.84329561]
[1753367805262,2.3939,186.93,186.88,8.84329561]
[1753367805449,11.23719561,186.93,186.88,8.84329561]
[1753367805960,0.73,186.93,186.89,8.84329561]
[1753367806262,0.03,186.93,186.91,8.84329561]
[1753367806766,0.03,186.93,186.91,9.54329561]
[1753367807139,0.03,186.93,186.92,10.07828384]
[1753367807340,0.03,186.93,186.92,53.08568648]
[1753367807542,0.03,186.93,186.92,58.43556878]
[1753367807763,0.03,186.93,186.92,49.59227317]
[1753367808056,0.03,186.93,186.92,58.43556878]
[1753367808463,0.03,186.93,186.92,50.1272614]
[1753367808668,0.03,186.93,186.92,49.59227317]
[1753367808842,0.03,186.93,186.92,57.73556878]
[1753367809236,0.03,186.93,186.92,58.43556878]
[1753367809651,0.03,186.93,186.92,49.59227317]
[1753367809850,0.03,186.93,186.92,8.84329561]
[1753367810056,0.03,186.93,186.92,9.54329561]
[1753367810256,0.03,186.93,186.92,14.89317791]
[1753367811159,0.03,187.0,186.92,15.42816614]
[1753367811358,0.03,186.97,186.93,1.23495961]
[1753367811558,0.03,186.97,186.94,6.04930993]
[1753367811866,0.03,186.97,186.96,8.84329561]
[1753367812438,0.03,186.97,186.96,9.54329561]
[1753367813668,0.03,186.97,186.96,14.8920333]
[1753367813968,0.03,186.97,186.96,15.17635644]
[1753367814143,0.03,187.0,186.97,6.40182314]
[1753367814350,0.03,187.0,186.97,6.8175]
[1753367814664,0.03,187.0,186.99,8.84329561]
[1753367814867,0.03,187.0,186.99,50.04329561]
[1753367815163,0.03,187.0,186.99,50.74329561]
[1753367815356,1e-08,187.0,186.99,86.40570231]
[1753367815568,1e-08,187.0,186.99,91.75358187]
[1753367815869,1e-08,187.0,186.99,41.42596312]
[1753367816042,1e-08,187.0,186.99,91.37879392]
[1753367816565,1e-08,187.0,186.99,91.39879392]
[1753367816752,1e-08,187.0,186.99,91.93358187]
[1753367817669,5.34446556,187.11,187.0,0.28432314]
[1753367817870,5.34446556,187.11,187.07,8.84329561]
[1753367818171,11.13819561,187.12,187.07,8.84329561]
[1753367818172,0.7,187.1,187.07,8.84329561]
[1753367818384,0.7,187.14,187.09,8.84329561]
[1753367818686,0.7,187.14,187.1,8.84329561]
[1753367818987,0.7,187.13,187.09,8.84329561]
[1753367819158,0.7,187.13,187.06,42.08]
[1753367819483,8.84329561,187.15,187.1,8.84329561]
[1753367819651,0.7,187.14,187.1,8.84329561]
[1753367820080,0.7,187.14,187.07,5.34559255]
[1753367820291,8.84329561,187.1,187.05,41.3]
[1753367820476,8.84329561,187.1,187.02,6.04698999]
[1753367820477,8.84329561,187.08,187.03,8.84329561]
[1753367820792,16.78468397,187.16,187.05,8.84329561]
[1753367820974,0.7,187.12,187.08,8.84329561]
[1753367821166,7.55277279,187.17,187.09,0.7]
[1753367821483,7.55277279,187.17,187.1,5.34473543]
[1753367821484,2.2098,187.17,187.1,5.34473543]
[1753367821788,0.7,187.16,187.1,8.84329561]
[1753367821956,8.84329561,187.14,187.05,7.0053]
[1753367822151,0.7,187.13,187.08,8.84329561]
[1753367822362,0.7,187.16,187.1,8.84329561]
[1753367822587,8.84329561,187.15,187.1,8.84329561]
[1753367822962,0.7,187.14,187.1,8.84329561]
[1753367823168,0.7,187.14,187.08,0.7]
[1753367823375,0.7,187.14,187.1,8.84329561]
[1753367823687,0.7,187.13,187.09,8.84329561]
[1753367823859,0.7,187.13,187.1,8.84329561]
[1753367824056,7.4408,187.2,187.06,47.44586128]
[1753367824057,0.7,187.15,187.07,0.7]
[1753367824263,8.84329561,187.17,187.12,8.84329561]
[1753367824574,11.05309561,187.2,187.15,8.84329561]
[1753367824882,0.7,187.23,187.18,8.84329561]
[1753367825080,5.34077228,187.24,187.19,8.84329561]
[1753367825264,0.7,187.24,187.2,8.84329561]
[1753367825467,0.7,187.23,187.15,0.7]
[1753367825667,0.03,187.21,187.15,6.0433075]
[1753367825889,8.84329561,187.2,187.14,41.38]
[1753367826088,9.54329561,187.19,187.14,8.84329561]
[1753367826293,0.03,187.21,187.12,5.34414215]
[1753367826493,0.03,187.21,187.15,0.7]
[1753367826717,8.87329561,187.21,187.15,8.84329561]
[1753367826887,9.57329561,187.21,187.15,8.84329561]
[1753367827092,14.9151083,187.21,187.15,8.84329561]
[1753367827290,0.73,187.21,187.16,8.84329561]
[1753367827479,9.54329561,187.2,187.15,8.84329561]
[1753367827691,0.7,187.19,187.14,5.34345834]
[1753367827970,0.03,187.21,187.17,8.84329561]
[1753367828173,0.03,187.21,187.18,9.54329561]
[1753367828571,0.03,187.21,187.18,8.84329561]
[1753367828776,0.03,187.21,187.15,0.67]
[1753367829003,0.03,187.21,187.18,8.84329561]
[1753367829389,0.03,187.21,187.18,9.51329561]
[1753367829654,0.03,187.21,187.18,8.84329561]
[1753367831090,0.03,187.21,187.16,5.34296659]
[1753367831295,0.03,187.21,187.16,6.01296659]
[1753367831483,0.03,187.21,187.18,8.84329561]
[1753367832096,0.03,187.21,187.16,5.34296659]
[1753367832317,0.03,187.21,187.19,8.84329561]
[1753367832504,0.03,187.21,187.2,8.84329561]
[1753367832806,13.34711569,187.31,187.2,55.78517595]
[1753367832807,0.28432314,187.31,187.2,55.78517595]
[1753367833016,2.78483506,187.34,187.27,26.0]
[1753367833314,16.053512,187.41,187.33,17.68659122]
[1753367833530,0.66,187.43,187.39,8.84329561]
[1753367833687,2.78316193,187.47,187.36,0.67]
[1753367833890,0.66,187.46,187.39,8.84329561]
[1753367834131,5.33390228,187.48,187.4,0.67]
[1753367834296,0.66,187.48,187.43,8.84329561]
[1753367834497,5.98779604,187.49,187.42,2.61021194]
[1753367834696,5.98779604,187.49,187.39,0.67]
[1753367834697,0.66,187.48,187.39,0.67]
[1753367834908,0.66,187.48,187.41,8.84329561]
[1753367835120,9.50329561,187.48,187.43,8.84329561]
[1753367835314,14.0688031,187.47,187.41,2.64625353]
[1753367835487,11.32151105,187.49,187.38,13.4088031]
[1753367835488,13.4088031,187.43,187.38,13.4088031]
[1753367835691,0.66,187.42,187.4,13.4088031]
[1753367835915,0.66,187.41,187.36,4.27114291]
[1753367836103,13.4088031,187.42,187.37,13.4088031]
[1753367836316,13.4088031,187.42,187.35,0.67]
[1753367836630,13.4088031,187.43,187.38,13.4088031]
[1753367836801,13.4088031,187.44,187.38,0.67]
[1753367837119,13.4088031,187.47,187.42,13.4088031]
[1753367837325,0.66,187.48,187.42,13.4088031]
[1753367837536,0.66,187.48,187.4,0.67]
[1753367837697,5.98779604,187.49,187.4,0.67]
[1753367838093,5.98779604,187.49,187.45,13.4088031]
[1753367838293,6.64779604,187.49,187.45,13.4088031]
[1753367838517,0.66,187.48,187.42,0.67]
[1753367838721,0.66,187.48,187.43,13.4088031]
[1753367838901,5.98779604,187.49,187.45,13.4088031]
[1753367839310,5.98779604,187.49,187.46,13.4088031]
[1753367839509,5.98779604,187.49,187.47,13.4088031]
[1753367839700,14.0688031,187.52,187.47,13.4088031]
[1753367840011,13.4088031,187.48,187.39,0.67]
[1753367840192,0.66,187.51,187.39,0.67]
[1753367840193,0.66,187.51,187.44,13.4088031]
[1753367840499,13.4088031,187.45,187.38,13.4088031]
[1753367840835,0.66,187.47,187.4,13.4088031]
[1753367841044,13.4088031,187.45,187.37,5.3367544]
[1753367841240,0.66,187.45,187.37,5.3367544]
[1753367841542,13.4088031,187.47,187.38,0.67]
[1753367841720,5.33282542,187.52,187.46,13.4088031]
[1753367841918,5.33282542,187.52,187.39,0.5336464]
[1753367841919,19.4015762,187.52,187.47,13.4088031]
[1753367842116,19.4015762,187.52,187.44,13.4088031]
[1753367842117,0.66,187.51,187.44,13.4088031]
[1753367842333,13.4088031,187.49,187.44,13.4088031]
[1753367842523,0.66,187.51,187.47,13.4088031]
[1753367842734,18.74130301,187.53,187.48,13.4088031]
[1753367842917,19.40099877,187.55,187.5,13.4088031]
[1753367843118,0.66,187.55,187.51,13.4088031]
[1753367843322,42.16,187.56,187.46,32.07945283]
[1753367843540,5.99130425,187.58,187.46,32.07945283]
[1753367843541,18.74010735,187.58,187.53,13.4088031]
[1753367843822,5.33020627,187.61,187.55,13.4088031]
[1753367844031,13.4088031,187.6,187.55,13.4088031]
[1753367844347,0.66,187.62,187.57,13.4088031]
[1753367844530,9.40631196,187.63,187.6,13.4088031]
[1753367844734,9.40631196,187.63,187.6,14.0788031]
[1753367844934,13.4088031,187.61,187.54,13.4088031]
[1753367845132,13.4088031,187.59,187.54,13.4088031]
[1753367845334,13.4088031,187.59,187.46,40.08115986]
[1753367845335,13.4088031,187.56,187.44,1.6181]
[1753367845648,0.66,187.56,187.5,13.4088031]
[1753367845832,14.0688031,187.56,187.5,13.4088031]
[1753367846037,13.4088031,187.55,187.5,13.4088031]
[1753367846226,13.4088031,187.51,187.47,0.67]
[1753367846433,13.4088031,187.51,187.44,1.6181]
[1753367846434,13.4088031,187.5,187.44,13.4088031]
[1753367846632,13.4088031,187.5,187.45,13.4088031]
[1753367846849,16.78468397,187.56,187.43,0.67]
[1753367846850,5.33162721,187.56,187.49,13.4088031]
[1753367847031,5.33162721,187.56,187.49,0.67]
[1753367847222,18.74043031,187.56,187.5,13.4088031]
[1753367847428,5.33162721,187.56,187.49,0.67]
[1753367847648,13.4088031,187.54,187.48,13.4088031]
[1753367847947,5.33162721,187.56,187.49,13.4088031]
[1753367848149,13.4088031,187.54,187.49,13.4088031]
[1753367848450,13.4088031,187.52,187.44,0.67]
[1753367848647,13.4088031,187.51,187.46,13.4088031]
[1753367848830,18.74196573,187.51,187.46,13.4088031]
[1753367849156,13.4088031,187.52,187.47,13.4088031]
[1753367849332,18.74100773,187.54,187.49,13.4088031]
[1753367849528,5.33220463,187.54,187.49,14.0788031]
[1753367849753,13.4088031,187.53,187.49,0.67]
[1753367849949,5.33105874,187.58,187.5,0.67]
[1753367850160,13.4088031,187.56,187.51,13.4088031]
[1753367850450,13.4088031,187.57,187.52,13.4088031]
[1753367850636,5.9908218,187.59,187.53,13.4088031]
[1753367850848,13.4088031,187.59,187.54,13.4088031]
[1753367851073,5.33020627,187.61,187.54,0.67]
[1753367851347,18.73900937,187.61,187.56,13.4088031]
[1753367851552,5.99020627,187.61,187.55,0.67]
[1753367851743,13.4088031,187.6,187.55,13.4088031]
[1753367852171,5.33020627,187.61,187.55,0.67]
[1753367852450,5.33020627,187.61,187.53,0.67]
[1753367852631,5.33020627,187.61,187.54,13.4088031]
[1753367852837,13.4088031,187.6,187.55,13.4088031]
[1753367853034,5.33020627,187.61,187.56,13.4088031]
[1753367853234,9.40631196,187.63,187.59,13.4088031]
[1753367853550,10.06631196,187.63,187.54,0.67]
[1753367853762,22.81511506,187.63,187.58,13.4088031]
[1753367854053,9.40631196,187.63,187.59,0.67]
[1753367854254,0.03,187.61,187.6,13.4088031]
[1753367854427,0.03,187.61,187.59,13.4088031]
[1753367854832,0.03,187.61,187.57,13.4088031]
[1753367855034,0.03,187.61,187.58,13.4088031]
[1753367855252,0.03,187.61,187.59,8.75790855]
[1753367855654,0.03,187.61,187.55,9.58771013]
[1753367855859,0.69,187.61,187.54,5.33215028]
[1753367856059,0.03,187.61,187.58,8.75790855]
[1753367856235,0.03,187.61,187.6,8.75790855]
[1753367856953,8.78790855,187.61,187.55,0.67]
[1753367857165,8.75790855,187.6,187.55,9.42790855]
[1753367857333,0.03,187.61,187.58,8.75790855]
[1753367857533,0.03,187.61,187.56,8.75790855]
[1753367857730,0.03,187.61,187.57,0.67]
[1753367857954,0.03,187.61,187.57,9.42790855]
[1753367857955,8.78790855,187.61,187.57,9.42790855]
[1753367858161,0.03,187.61,187.56,8.75790855]
[1753367858536,0.03,187.61,187.58,8.75790855]
[1753367858755,0.03,187.61,187.58,5.3310419]
[1753367859050,8.78790855,187.61,187.55,5.33191149]
[1753367859253,0.03,187.61,187.6,8.75790855]
[1753367859554,0.03,187.61,187.59,8.75790855]
[1753367860543,0.03,187.61,187.6,8.75790855]
[1753367861236,0.03,187.61,187.6,9.47790855]
[1753367861652,0.03,187.61,187.6,0.72]
[1753367861832,0.03,187.61,187.6,9.47790855]
[1753367862244,0.03,187.61,187.58,5.33100084]
[1753367862436,0.03,187.61,187.6,8.75790855]
[1753367862859,0.03,187.61,187.6,14.80839895]
[1753367863239,0.03,187.61,187.57,0.72]
[1753367863440,0.03,187.61,187.6,8.75790855]
[1753367863968,0.03,187.61,187.6,0.72]
[1753367864167,0.03,187.61,187.57,0.72]
[1753367864340,0.03,187.61,187.56,6.05162721]
[1753367864545,0.03,187.61,187.6,8.75790855]
[1753367867747,5.32614811,187.76,187.71,8.75790855]
[1753367867950,14.74405666,187.76,187.71,8.75790855]
[1753367868148,5.32614811,187.76,187.69,0.72]
[1753367868364,8.75790855,187.74,187.69,8.75790855]
[1753367868572,0.66,187.73,187.69,8.75790855]
[1753367868867,8.75790855,187.74,187.7,8.75790855]
[1753367869072,5.32564374,187.78,187.71,0.72]
[1753367869269,5.32564374,187.78,187.62,22.11460615]
[1753367869270,8.75790855,187.76,187.68,0.72]
[1753367869567,8.75790855,187.76,187.65,26.0]
[1753367869568,0.66,187.75,187.65,26.72]
[1753367869750,8.75790855,187.7,187.61,0.72]
[1753367869940,0.66,187.75,187.6,6.0111]
[1753367869941,8.75790855,187.66,187.6,6.0111]
[1753367870150,0.66,187.67,187.6,6.0111]
[1753367870463,0.66,187.67,187.56,26.0]
[1753367870464,0.66,187.67,187.56,6.14]
[1753367870665,0.66,187.67,187.61,8.75790855]
[1753367870871,5.98863896,187.67,187.62,8.75790855]
[1753367871161,5.98863896,187.67,187.56,6.14]
[1753367871162,9.41790855,187.66,187.57,0.72]
[1753367871345,0.66,187.66,187.6,8.75790855]
[1753367871671,8.75790855,187.65,187.6,8.75790855]
[1753367871966,18.64989435,187.67,187.54,2.6107896]
[1753367871967,0.66,187.64,187.58,8.75790855]
[1753367872167,8.75790855,187.6,187.51,6.4601]
[1753367872386,8.75790855,187.57,187.52,8.75790855]
[1753367872543,9.41790855,187.56,187.5,8.75790855]
[1753367872746,8.75790855,187.56,187.54,0.06]
[1753367872972,0.66,187.58,187.54,0.06]
[1753367873148,5.32935408,187.64,187.56,8.75790855]
[1753367873350,8.75790855,187.61,187.57,0.72]
[1753367873550,8.75790855,187.59,187.55,8.75790855]
[1753367873872,5.32935408,187.64,187.55,8.75790855]
[1753367874069,9.41790855,187.62,187.57,8.75790855]
[1753367874256,8.75790855,187.63,187.58,8.75790855]
[1753367874657,5.98901504,187.66,187.59,8.75790855]
[1753367874857,5.32931598,187.65,187.6,8.75790855]
[1753367875054,9.41790855,187.64,187.58,0.72]
[1753367875375,49.6646,187.67,187.58,0.72]
[1753367875376,8.75790855,187.66,187.58,0.72]
[1753367875749,47.54875398,187.67,187.58,0.72]
[1753367875950,0.66,187.71,187.64,8.75790855]
[1753367876251,9.41790855,187.71,187.66,8.75790855]
[1753367876445,8.75790855,187.71,187.66,8.75790855]
[1753367876661,8.75790855,187.72,187.67,8.75790855]
[1753367876854,56.36466668,187.74,187.68,0.72]
[1753367877153,8.75790855,187.7,187.63,0.72]
[1753367877353,0.66,187.73,187.63,0.72]
[1753367877657,8.75790855,187.72,187.63,0.72]
[1753367877860,0.66,187.73,187.69,8.75790855]
[1753367878062,0.66,187.73,187.66,0.72]
[1753367878258,8.75790855,187.72,187.63,0.72]
[1753367878462,0.66,187.73,187.67,8.75790855]
[1753367878665,0.66,187.73,187.63,0.72]
[1753367878666,56.36466668,187.74,187.69,8.75790855]
[1753367878973,57.02466668,187.74,187.66,6.0487471]
[1753367879175,57.02466668,187.74,187.68,8.75790855]
[1753367879373,8.75790855,187.73,187.68,8.75790855]
[1753367879551,9.41790855,187.73,187.66,6.0487471]
[1753367879747,8.75790855,187.73,187.68,8.75790855]
[1753367879957,14.74471737,187.73,187.68,8.75790855]
[1753367880155,0.66,187.72,187.59,13.38674822]
[1753367880358,0.66,187.72,187.59,8.81790855]
[1753367880359,8.75790855,187.64,187.59,8.81790855]
[1753367880773,9.41790855,187.63,187.59,0.06]
[1753367880964,8.75790855,187.61,187.59,0.06]
[1753367881272,8.75790855,187.63,187.59,0.06]
[1753367881456,0.66,187.66,187.6,8.75790855]
[1753367881660,8.75790855,187.68,187.63,8.75790855]
[1753367881870,0.66,187.69,187.64,8.75790855]
[1753367882070,42.18,187.7,187.66,8.75790855]
[1753367882378,42.18,187.7,187.63,0.72]
[1753367882379,56.92559701,187.7,187.63,0.72]
[1753367882679,0.66,187.69,187.61,8.75790855]
[1753367882877,8.75790855,187.66,187.61,8.75790855]